bitfinex/quotes_ETHUSD_20260114
["timestamp","ask_amount","ask_price","bid_price","bid_amount"]
[1768376809638,1.523,3332.0,3331.8,0.02086903]
[1768376810357,0.413,3331.9,3331.8,0.02086903]
[1768376812356,0.968,3331.9,3331.8,0.02086903]
[1768376812939,0.555,3331.9,3331.8,0.02086903]
[1768376813155,0.968,3331.9,3331.8,0.02086903]
[1768376814754,1.523,3331.9,3331.8,0.02086903]
[1768376815962,1.11,3331.9,3331.8,9.20832982]
[1768376816176,1.11,3332.0,3331.8,0.02086903]
[1768376816465,0.413,3331.9,3331.8,0.02086903]
[1768376817237,0.968,3331.9,3331.8,0.02086903]
[1768376817966,0.555,3331.9,3331.8,0.02086903]
[1768376818168,0.968,3331.9,3331.8,0.02086903]
[1768376818668,0.968,3331.9,3331.8,9.20832982]
[1768376819559,1.523,3331.9,3331.8,9.20832982]
[1768376820162,1.523,3331.9,3331.8,0.02086903]
[1768376820374,1.523,3331.9,3331.5,9.18746079]
[1768376822172,2.078,3331.9,3331.5,9.18746079]
[1768376824171,5.07932555,3331.9,3331.3,9.18746079]
[1768376824378,2.078,3331.9,3331.3,9.18746079]
[1768376824580,2.633,3331.9,3331.3,9.18746079]
[1768376825453,2.633,3331.9,3331.4,9.19496368]
[1768376827087,3.188,3331.9,3331.4,9.19496368]
[1768376827684,3.188,3331.9,3331.6,0.001]
[1768376828393,0.413,3331.8,3331.6,0.001]
[1768376829499,0.968,3331.8,3331.6,0.001]
[1768376831995,1.523,3331.8,3331.6,0.001]
[1768376834472,2.078,3331.8,3331.6,0.001]
[1768376836903,2.633,3331.8,3331.6,0.001]
[1768376837403,0.59488623,3331.8,3331.7,6.48146778]
[1768376837700,1.667,3332.2,3331.7,7.13271621]
[1768376838299,0.413,3332.1,3331.8,0.02095428]
[1768376838502,1.667,3332.2,3331.8,0.02095428]
[1768376838684,0.413,3332.0,3331.8,0.02095428]
[1768376839583,0.968,3332.0,3331.8,0.02095428]
[1768376839784,0.968,3332.0,3331.8,0.4965382]
[1768376839999,0.968,3332.0,3331.8,10.35740357]
[1768376841916,0.968,3332.0,3331.8,0.02095428]
[1768376842119,1.523,3332.0,3331.8,9.88181965]
[1768376842918,0.413,3331.9,3331.8,9.88181965]
[1768376844603,0.968,3331.9,3331.8,9.88181965]
[1768376845408,0.555,3331.9,3331.8,9.88181965]
[1768376845615,0.413,3331.9,3331.8,9.88181965]
[1768376845922,1.11,3332.0,3331.9,9.86086537]
[1768376846130,1.523,3332.0,3331.9,9.86086537]
[1768376846430,1.523,3332.0,3331.8,0.02095428]
[1768376846431,1.667,3332.2,3332.0,9.86086537]
[1768376846991,0.413,3332.1,3332.0,9.86086537]
[1768376849436,0.968,3332.1,3332.0,9.86086537]
[1768376849639,0.002,3333.2,3332.6,9.86086537]
[1768376849929,0.555,3333.3,3332.8,6.48146778]
[1768376850229,0.555,3333.8,3333.0,9.86086537]
[1768376850429,0.13321372,3333.5,3333.1,10.14055922]
[1768376850728,3.96760366,3333.8,3333.2,0.27969385]
[1768376850915,3.96760366,3333.8,3333.3,10.14055922]
[1768376851123,3.96760366,3333.8,3333.4,0.27969385]
[1768376851437,3.5546821,3333.7,3333.1,9.86086537]
[1768376851636,1.11,3333.6,3333.3,9.86086537]
[1768376851926,7.27609893,3333.5,3332.9,0.64814678]
[1768376852126,7.20480735,3333.3,3332.6,3.00060119]
[1768376852335,0.413,3333.4,3332.7,9.86086537]
[1768376852517,0.413,3333.4,3332.8,9.86086537]
[1768376852722,0.413,3333.4,3332.7,3.00055329]
[1768376852919,0.413,3333.4,3332.6,3.00062755]
[1768376853124,0.413,3333.4,3332.7,11.14701466]
[1768376853632,0.413,3333.4,3332.8,9.86086537]
[1768376854039,0.968,3333.4,3332.8,9.86086537]
[1768376855445,0.968,3333.4,3332.9,9.15391027]
[1768376855446,0.555,3333.4,3332.9,9.15391027]
[1768376855636,0.413,3333.3,3332.9,9.15391027]
[1768376855840,0.555,3333.4,3332.9,10.49796408]
[1768376856149,0.413,3333.2,3332.9,10.49796408]
[1768376856340,0.555,3333.4,3333.1,9.15391027]
[1768376856518,0.555,3333.2,3332.9,10.49796408]
[1768376858321,0.555,3333.2,3332.9,9.15391027]
[1768376859152,1.11,3333.2,3332.9,9.15391027]
[1768376859346,0.413,3333.1,3332.9,9.15391027]
[1768376861647,0.968,3333.1,3332.9,9.15391027]
[1768376862022,0.968,3333.1,3332.0,3.00116239]
[1768376862023,0.968,3333.1,3332.0,9.15391027]
[1768376862358,0.97,3333.1,3332.5,9.15391027]
[1768376863074,3.97022057,3333.1,3332.5,9.15391027]
[1768376864078,1.525,3333.1,3332.5,9.15391027]
[1768376865284,4.52521864,3333.1,3332.3,12.15482154]
[1768376865575,7.00063553,3333.0,3332.4,0.27907549]
[1768376865750,7.00063553,3333.0,3332.3,3.00091127]
[1768376865955,7.00063553,3333.0,3332.4,0.58007937]
[1768376866273,4.52521864,3333.1,3332.5,9.15391027]
[1768376866442,0.555,3333.0,3332.5,9.15391027]
[1768376866864,0.555,3333.0,3332.1,2.17088503]
[1768376867171,0.70054288,3333.0,3332.2,0.27706535]
[1768376867347,0.70054288,3333.0,3332.1,9.15391027]
[1768376867665,7.20619142,3332.9,3331.8,9.15391027]
[1768376867870,0.62914937,3332.8,3332.0,3.00111399]
[1768376868067,0.62914937,3332.8,3332.1,3.86400083]
[1768376868242,0.413,3332.7,3332.2,9.15391027]
[1768376868438,0.413,3332.6,3332.2,9.15391027]
[1768376868856,0.968,3332.6,3332.2,9.15391027]
[1768376870071,0.413,3332.5,3332.2,9.15391027]
[1768376871071,0.69835078,3332.5,3332.1,0.86289171]
[1768376871247,0.968,3332.5,3332.0,9.15391027]
[1768376873454,3.96875832,3332.5,3332.0,9.15391027]
[1768376873769,4.52375832,3332.5,3332.0,9.15391027]
[1768376874145,1.523,3332.5,3332.0,9.15391027]
[1768376875171,1.523,3332.5,3332.0,12.15509397]
[1768376875379,0.413,3332.4,3332.1,10.36941967]
[1768376875754,1.11,3332.5,3332.1,10.36941967]
[1768376876083,0.413,3332.4,3332.1,10.36941967]
[1768376876583,1.665,3332.5,3332.1,10.36941967]
[1768376876584,8.801291,3332.5,3332.1,4.21659818]
[1768376876770,0.413,3332.3,3332.1,9.15391027]
[1768376877692,1.665,3332.5,3332.2,9.15391027]
[1768376877874,0.413,3332.4,3332.2,9.15391027]
[1768376878179,1.665,3332.5,3332.2,9.15391027]
[1768376878485,0.413,3332.4,3332.2,9.15391027]
[1768376880288,7.27609893,3332.3,3331.6,0.001]
[1768376880494,7.27609893,3332.3,3331.7,0.30026509]
[1768376880676,0.413,3332.4,3331.7,0.30026509]
[1768376881055,11.24635556,3332.4,3331.7,0.30026509]
[1768376881368,8.24551111,3332.4,3331.7,0.30026509]
[1768376882278,0.968,3332.4,3331.8,9.15391027]
[1768376883887,4.52385994,3332.4,3331.8,9.15391027]
[1768376884191,4.11085994,3332.4,3331.8,9.15391027]
[1768376884391,0.413,3332.3,3331.8,10.39958097]
[1768376885302,0.413,3332.2,3331.8,10.39958097]
[1768376886013,0.413,3332.2,3332.1,9.74221945]
[1768376886186,0.968,3332.2,3332.1,9.74221945]
[1768376886774,0.968,3332.2,3332.0,0.001]
[1768376887381,3.96902239,3332.2,3332.0,0.001]
[1768376887608,0.968,3332.2,3332.0,0.001]
[1768376889413,1.523,3332.2,3332.0,0.001]
[1768376889618,0.555,3332.6,3332.0,0.001]
[1768376889619,0.557,3333.4,3332.5,9.74221945]
[1768376889779,0.555,3333.7,3332.4,9.74221945]
[1768376889780,0.555,3333.7,3332.9,6.47942207]
[1768376890182,0.413,3333.6,3333.0,9.74221945]
[1768376890393,0.413,3333.6,3333.1,0.97422195]
[1768376890686,0.413,3333.6,3333.1,10.1594414]
[1768376891782,0.968,3333.6,3333.1,10.1594414]
[1768376892286,0.555,3333.7,3333.2,9.74221945]
[1768376892496,0.413,3333.6,3333.2,9.74221945]
[1768376892828,0.37715827,3333.6,3333.3,1.61598614]
[1768376893129,0.3621743,3333.6,3333.3,1.61598614]
[1768376893304,0.555,3333.7,3333.3,1.61598614]
[1768376893305,0.413,3333.5,3333.3,4.61599338]
[1768376893509,0.413,3333.5,3333.3,3.00000724]
[1768376894130,0.413,3333.6,3333.3,9.74221945]
[1768376894297,0.555,3333.5,3333.3,9.74221945]
[1768376894494,1e-08,3333.5,3333.3,3.00002824]
[1768376894692,0.413,3333.6,3333.3,3.00002824]
[1768376894896,0.555,3333.7,3333.3,4.6159959]
[1768376895123,0.555,3333.7,3333.4,9.74221945]
[1768376895897,0.555,3333.7,3333.1,0.41722195]
[1768376896098,0.555,3333.7,3333.1,13.15962928]
[1768376896732,3.55467989,3333.7,3332.8,9.74221945]
[1768376896933,1.11,3333.7,3332.9,3.00038306]
[1768376897225,1.11,3333.7,3332.9,12.74260251]
[1768376897435,4.10967511,3333.7,3332.9,9.74221945]
[1768376897726,4.10967511,3333.7,3332.9,3.00037287]
[1768376897898,4.55607752,3333.7,3332.9,3.00037287]
[1768376898096,4.10967511,3333.7,3332.9,12.74259232]
[1768376898301,0.002,3333.4,3332.9,9.74221945]
[1768376898511,0.414,3333.4,3333.0,1.27426667]
[1768376899230,0.414,3333.4,3333.0,10.57740129]
[1768376899429,0.969,3333.4,3333.0,10.57740129]
[1768376901818,1.524,3333.4,3333.0,1.27426667]
[1768376902337,1.524,3333.4,3332.8,12.30360404]
[1768376902533,1.524,3333.4,3332.8,9.30313462]
[1768376903106,1.524,3333.4,3332.6,12.30377185]
[1768376903312,4.5239615,3333.4,3332.6,9.30313462]
[1768376904127,5.0789615,3333.4,3332.6,12.30378117]
[1768376904637,13.3016002,3333.4,3332.6,12.30378117]
[1768376905843,0.32878933,3333.3,3332.6,3.00064655]
[1768376906644,1.667,3333.4,3332.4,9.30313462]
[1768376906840,0.412,3333.2,3332.5,1.53049952]
[1768376908146,0.412,3333.2,3332.6,12.30379476]
[1768376908437,0.412,3333.2,3332.7,9.30313462]
[1768376908740,0.555,3333.3,3332.7,9.30313462]
[1768376908741,0.412,3333.1,3332.7,9.30313462]
[1768376909037,0.412,3333.1,3332.7,10.98663006]
[1768376909239,0.967,3333.1,3332.7,10.98663006]
[1768376910209,0.967,3333.1,3332.5,9.30313462]
[1768376910405,3.96722606,3333.1,3332.5,9.30313462]
[1768376910739,3.96722606,3333.1,3332.8,0.001]
[1768376911301,3.55522606,3333.1,3332.8,0.001]
[1768376911444,0.412,3333.0,3332.8,0.001]
[1768376913645,3.41232173,3333.0,3332.8,0.001]
[1768376913947,3.96732173,3333.0,3332.8,0.001]
[1768376914242,4.77506745,3333.0,3332.8,0.001]
[1768376914618,4.77506745,3333.0,3332.1,9.30413462]
[1768376914619,8.10417851,3333.0,3332.1,9.30413462]
[1768376916429,8.65917851,3333.0,3332.1,9.30413462]
[1768376916834,0.555,3334.6,3334.0,9.06600183]
[1768376917146,0.555,3334.6,3332.2,16.2951017]
[1768376917147,0.412,3334.6,3333.6,9.06600183]
[1768376917347,0.412,3334.6,3333.0,6.95872285]
[1768376917348,0.56822553,3334.6,3333.3,9.06600183]
[1768376917533,0.412,3334.6,3333.5,9.06600183]
[1768376918367,0.412,3334.6,3333.4,0.90660018]
[1768376918368,0.412,3334.6,3333.7,9.06600183]
[1768376918790,2.20585474,3334.5,3333.1,9.06600183]
[1768376919133,2.20585474,3334.5,3333.4,2.9999153]
[1768376919452,2.20585474,3334.5,3333.5,2.99984847]
[1768376920058,2.20585474,3334.5,3333.2,3.00011188]
[1768376920254,2.20585474,3334.5,3333.1,3.00019418]
[1768376920663,5.9980806,3334.4,3333.0,3.00030003]
[1768376920833,6.0531074,3334.4,3333.1,9.06600183]
[1768376921230,6.6081074,3334.4,3333.1,9.06600183]
[1768376921436,3.6090671,3334.4,3333.1,9.06600183]
[1768376921739,5.4482037,3334.3,3333.1,9.06600183]
[1768376921930,3.5540403,3334.4,3333.1,9.06600183]
[1768376922263,0.555,3334.4,3333.1,9.06600183]
[1768376922556,0.412,3334.3,3333.4,9.06600183]
[1768376922784,0.412,3334.3,3333.3,6.47942207]
[1768376922785,0.555,3334.4,3333.6,9.06600183]
[1768376923333,0.412,3334.3,3333.6,9.06600183]
[1768376923539,0.555,3334.3,3333.6,9.06600183]
[1768376923744,0.412,3334.2,3333.7,9.06600183]
[1768376923942,0.555,3334.3,3333.7,9.06600183]
[1768376924168,0.412,3334.2,3333.7,9.06600183]
[1768376924753,0.555,3334.6,3334.4,9.06600183]
[1768376924933,0.555,3334.6,3333.8,5.9991601]
[1768376924934,1.11,3334.7,3333.9,9.06600183]
[1768376925133,1e-08,3334.8,3334.0,11.52041824]
[1768376925442,1e-08,3334.8,3334.3,9.06600183]
[1768376925841,1e-08,3334.8,3334.2,0.0229532]
[1768376926051,0.55500001,3334.8,3334.2,0.0229532]
[1768376926444,0.412,3334.7,3334.2,0.0229532]
[1768376926768,0.412,3334.7,3334.4,2.9990403]
[1768376926948,0.412,3334.7,3334.2,3.02208964]
[1768376927694,0.412,3334.7,3334.3,9.06600183]
[1768376928434,0.967,3334.7,3334.3,12.06513208]
[1768376928677,0.967,3334.7,3334.3,9.06600183]
[1768376930839,1.522,3334.7,3334.2,0.0229532]
[1768376931051,7.51957804,3334.7,3334.2,0.0229532]
[1768376932160,4.5207705,3334.7,3334.2,0.0229532]
[1768376932562,7.51957804,3334.7,3334.2,0.0229532]
[1768376932866,7.51957804,3334.7,3334.2,1e-08]
[1768376933268,8.07457804,3334.7,3334.2,1e-08]
[1768376934975,5.0757705,3334.7,3334.2,1e-08]
[1768376935175,8.07457804,3334.7,3334.2,1e-08]
[1768376935667,8.62957804,3334.7,3334.2,1e-08]
[1768376936874,5.6307705,3334.7,3334.2,9.06600184]
[1768376937067,0.412,3334.6,3334.2,9.06600184]
[1768376937271,0.412,3334.6,3334.2,1e-08]
[1768376938274,0.967,3334.6,3334.2,1e-08]
[1768376938851,5.99790072,3334.5,3334.2,1e-08]
[1768376939177,0.412,3334.4,3334.2,1e-08]
[1768376940081,2.99913025,3334.3,3334.2,1e-08]
[1768376940282,9.34462064,3334.3,3334.2,1e-08]
[1768376940464,0.412,3334.3,3334.2,1e-08]
[1768376940664,7.01913024,3334.3,3334.2,1e-08]
[1768376941177,7.01913024,3334.3,3333.3,2.99999582]
[1768376941392,7.01913024,3334.3,3333.0,8.05494]
[1768376941601,0.412,3334.2,3333.2,9.06600183]
[1768376941893,0.412,3334.2,3333.2,10.27261767]
[1768376942268,5.9986203,3334.1,3333.2,10.27261767]
[1768376942902,5.9986203,3334.1,3333.2,9.06600183]
[1768376943067,3.55431015,3334.1,3333.2,9.06600183]
[1768376943493,6.5536203,3334.1,3333.2,9.06600183]
[1768376944782,0.412,3334.0,3333.2,9.06600183]
[1768376944985,0.412,3334.0,3332.9,9.06600183]
[1768376945297,0.412,3334.0,3333.0,1.55376159]
[1768376945490,0.967,3334.0,3333.1,9.17173656]
[1768376946369,2.99949008,3333.9,3333.3,9.17273656]
[1768376946571,0.412,3333.8,3333.3,9.17273656]
[1768376948203,0.967,3333.8,3333.3,9.17273656]
[1768376949432,2.99976001,3333.6,3333.3,9.17273656]
[1768376950237,2.99976001,3333.6,3333.3,0.001]
[1768376950440,5.99952002,3333.6,3333.3,0.001]
[1768376950740,5.99952002,3333.6,3333.0,9.17173656]
[1768376950741,6.55452002,3333.6,3333.0,9.17173656]
[1768376951045,6.55452002,3333.6,3332.7,9.17173656]
[1768376951396,3.55476001,3333.6,3332.7,9.17173656]
[1768376951822,0.412,3333.5,3332.7,9.17173656]
[1768376952030,0.412,3333.5,3332.9,9.17173656]
[1768376952815,0.412,3333.4,3332.9,9.17173656]
[1768376953509,3.41195196,3333.4,3332.9,9.17173656]
[1768376955441,3.96695196,3333.4,3332.9,9.17173656]
[1768376955933,6.96690392,3333.4,3332.9,9.17173656]
[1768376957130,6.96690392,3333.4,3332.5,9.17173656]
[1768376958006,7.52190392,3333.4,3332.5,9.17173656]
[1768376958936,7.52190392,3333.4,3332.4,3.00183931]
[1768376958937,7.52190392,3333.4,3333.2,0.001]
[1768376959139,7.52190392,3333.4,3332.7,9.06881975]
[1768376960652,8.07690392,3333.4,3332.7,9.06881975]
[1768376961209,8.07690392,3333.4,3332.5,9.06881975]
[1768376961408,8.07690392,3333.4,3332.5,10.27588064]
[1768376963129,8.63190392,3333.4,3332.5,10.27588064]
[1768376963515,5.63195196,3333.4,3332.6,9.06881975]
[1768376963815,0.412,3333.3,3332.6,9.06881975]
[1768376964029,0.412,3333.3,3332.6,10.39657947]
[1768376964855,8.21990392,3333.4,3332.6,10.39657947]
[1768376965051,0.412,3333.3,3332.6,10.39657947]
[1768376965256,3.00012,3333.2,3332.6,10.39657947]
[1768376965460,3.96712,3333.2,3332.6,10.39657947]
[1768376966147,3.55512,3333.2,3332.6,10.39657947]
[1768376966677,0.412,3333.1,3332.6,10.39657947]
[1768376966877,0.824,3333.1,3332.6,10.39657947]
[1768376967171,0.412,3333.0,3332.6,10.39657947]
[1768376967347,0.412,3333.0,3332.8,9.06881975]
[1768376967935,0.967,3333.0,3332.8,9.06881975]
[1768376970251,0.412,3332.9,3332.8,9.06881975]
[1768376970434,0.555,3333.2,3333.0,9.06981975]
[1768376970635,2.22,3333.4,3333.1,9.06881975]
[1768376971328,0.412,3333.3,3333.1,9.06881975]
[1768376971565,2.22,3333.4,3333.3,9.06881975]
[1768376971788,0.555,3333.8,3333.4,9.06881975]
[1768376971992,0.412,3333.7,3333.4,9.06881975]
[1768376973004,0.967,3333.7,3333.4,9.06881975]
[1768376973513,3.96668414,3333.7,3333.4,9.06881975]
[1768376975302,4.52168414,3333.7,3333.4,9.06881975]
[1768376977709,5.07668414,3333.7,3333.4,9.06881975]
[1768376980016,5.63168414,3333.7,3333.4,9.06881975]
[1768376982529,6.18668414,3333.7,3333.4,9.06881975]
[1768376985125,6.74168414,3333.7,3333.4,9.06881975]
[1768376987626,7.29668414,3333.7,3333.4,9.06881975]
[1768376987948,7.4866534,3333.7,3333.0,0.001]
[1768376988157,7.4866534,3333.7,3333.0,0.90766316]
[1768376988955,6.27194067,3333.6,3333.0,0.90766316]
[1768376990135,2.99985,3333.5,3333.0,9.06663164]
[1768376990732,5.9997,3333.5,3333.0,0.001]
[1768376992323,0.28057401,3333.4,3333.0,0.001]
[1768376992528,3.69260401,3333.3,3332.8,8.87174533]
[1768376992732,0.28057401,3333.2,3332.8,8.87174533]
[1768376992918,0.28057401,3333.1,3332.8,8.87174533]
[1768376993118,0.28057401,3333.0,3332.8,8.87174533]
[1768376993318,0.69257401,3332.9,3332.8,8.87174533]
[1768376993521,0.412,3332.9,3332.8,8.87174533]
[1768376994135,6.27386014,3333.4,3332.8,1.18724044]
[1768376994340,0.85283614,3333.3,3332.7,3.00056485]
[1768376994935,0.412,3333.3,3332.9,9.08649893]
[1768376995232,0.967,3333.3,3332.9,9.07837753]
[1768376995539,0.967,3333.3,3332.9,8.80715546]
[1768376997338,0.555,3333.5,3333.3,9.06563164]
[1768376997508,0.412,3333.4,3332.8,3.00044415]
[1768376997708,0.555,3333.5,3332.9,9.66573034]
[1768376998109,3.55485008,3333.5,3332.9,9.66573034]
[1768376999336,0.412,3333.4,3332.9,9.66573034]
[1768377000111,0.967,3333.4,3332.9,9.66573034]
[1768377000615,0.555,3333.4,3332.9,9.66573034]
[1768377000816,0.412,3333.3,3332.9,9.66573034]
[1768377001849,0.412,3333.2,3332.9,9.66573034]
[1768377002051,0.555,3333.4,3333.1,9.06563164]
[1768377002262,0.412,3333.3,3333.1,9.06563164]
[1768377002441,1.11,3333.4,3333.1,9.06563164]
[1768377002765,0.555,3334.1,3333.4,9.06563164]
[1768377002941,0.412,3333.7,3333.4,8.75245912]
[1768377003125,3.55458781,3333.8,3333.4,8.75245912]
[1768377003758,3.55458781,3333.8,3333.1,9.06563164]
[1768377003938,3.55458781,3333.8,3333.1,10.33223005]
[1768377004142,0.412,3333.7,3333.1,10.33223005]
[1768377004643,0.412,3333.7,3333.1,1.26659841]
[1768377004841,4.485168,3333.7,3332.9,3.60045158]
[1768377005045,0.002,3333.2,3332.9,3.60045158]
[1768377005315,0.414,3333.2,3333.0,9.75186979]
[1768377005628,0.414,3333.2,3332.9,13.35232137]
[1768377006149,0.414,3333.2,3333.0,12.75216425]
[1768377006349,1e-08,3333.2,3333.1,1.3352263]
[1768377006554,1e-08,3333.2,3332.9,3.60042883]
[1768377006749,1e-08,3333.2,3332.9,10.35196849]
[1768377006966,0.002,3333.5,3333.1,9.75186979]
[1768377007146,0.412,3333.6,3333.0,6.0005937]
[1768377007461,0.555,3333.5,3333.1,9.75186979]
[1768377007769,0.555,3333.5,3333.2,11.32711614]
[1768377009772,0.555,3333.5,3333.3,9.75186979]
[1768377009993,0.555,3333.7,3333.3,9.75186979]
[1768377010169,0.967,3333.7,3333.3,9.75186979]
[1768377010469,0.967,3333.7,3333.3,9.4725137]
[1768377011875,0.555,3333.7,3333.3,9.4725137]
[1768377012060,0.967,3333.7,3333.3,9.4725137]
[1768377012389,1.522,3333.7,3333.3,9.4725137]
[1768377014989,0.555,3333.8,3333.6,9.75186979]
[1768377015180,0.555,3333.8,3333.3,4.40481099]
[1768377015181,0.555,3334.1,3333.7,9.55701604]
[1768377015488,0.967,3334.1,3333.7,9.55701604]
[1768377015984,0.555,3334.1,3333.7,9.55701604]
[1768377016291,0.555,3334.1,3333.8,10.70757139]
[1768377017481,0.2800167,3334.0,3333.8,10.70757139]
[1768377017686,0.2800167,3333.9,3333.8,10.70757139]
[1768377018990,1.11,3334.1,3333.8,0.9557016]
[1768377018991,1.112,3334.1,3333.8,0.9557016]
[1768377019384,1.112,3334.1,3333.4,5.99985177]
[1768377019590,1.112,3334.1,3333.4,15.22936517]
[1768377019892,1.112,3334.1,3333.5,9.2295134]
[1768377020090,1.667,3334.1,3333.5,9.2295134]
[1768377021375,1.667,3334.1,3333.7,9.2295134]
[1768377021699,1.667,3334.1,3333.9,9.2295134]
[1768377022782,2.222,3334.1,3333.9,9.2295134]
[1768377024406,2.222,3334.1,3333.6,9.2295134]
[1768377025405,2.777,3334.1,3333.6,9.2295134]
[1768377025907,13.61457619,3334.1,3333.3,1.40578798]
[1768377026102,13.61457619,3334.1,3333.3,0.001]
[1768377026300,16.6139616,3334.1,3333.3,0.001]
[1768377027620,0.412,3334.0,3333.4,9.2295134]
[1768377028290,0.412,3333.9,3333.6,9.2295134]
[1768377028691,3.332,3334.1,3333.6,9.2295134]
[1768377028915,0.412,3334.0,3333.6,9.2295134]
[1768377030302,0.967,3334.0,3333.4,9.2295134]
[1768377030499,3.96640382,3334.0,3333.7,0.001]
[1768377031010,0.28008883,3333.9,3333.7,0.001]
[1768377031217,0.28008883,3333.8,3333.7,0.001]
[1768377031800,0.555,3334.3,3333.9,9.2295134]
[1768377032113,0.555,3334.6,3334.1,9.2295134]
[1768377032283,0.967,3334.6,3334.1,9.2295134]
[1768377032483,3.96586536,3334.6,3334.1,9.2295134]
[1768377032685,0.557,3334.4,3334.1,9.2295134]
[1768377035235,1.112,3334.4,3334.1,9.2295134]
[1768377036591,1.112,3334.4,3334.1,9.13092228]
[1768377036788,1.112,3334.4,3333.7,3.00064591]
[1768377036789,1.112,3334.4,3333.8,12.03776154]
[1768377036994,1.112,3334.4,3333.8,10.58324257]
[1768377037189,7.93388264,3334.3,3333.8,4.54462888]
[1768377037423,1.112,3334.4,3333.8,10.58324257]
[1768377037738,1e-08,3334.3,3334.0,9.03818331]
[1768377038239,1e-08,3334.3,3333.8,13.58277318]
[1768377038405,1e-08,3334.3,3333.9,1.69955071]
[1768377038731,1e-08,3334.3,3333.9,10.73773402]
[1768377040241,0.55500001,3334.3,3333.9,10.73773402]
[1768377041859,3.55414497,3334.3,3333.7,0.001]
[1768377042004,6.55328993,3334.3,3333.7,0.001]
[1768377042208,6.87049598,3334.3,3333.7,0.001]
[1768377042510,7.85580694,3334.2,3333.4,2.99986689]
[1768377042926,2.99931015,3334.1,3333.3,0.001]
[1768377043109,0.412,3334.0,3333.3,1.50496033]
[1768377043935,0.28025115,3333.9,3333.3,10.54314364]
[1768377044136,0.28025115,3333.8,3333.3,10.54314364]
[1768377044343,0.412,3334.0,3333.3,10.54314364]
[1768377044531,0.28028502,3333.9,3333.3,10.54314364]
[1768377044718,0.28028502,3333.8,3333.5,2.99985]
[1768377044919,0.555,3333.9,3333.5,2.99985]
[1768377045133,1e-08,3333.8,3333.5,2.99985]
[1768377045332,0.967,3333.9,3333.8,0.02086716]
[1768377047528,1.522,3333.9,3333.8,0.02086716]
[1768377047753,1.11,3333.9,3333.8,0.02086716]
[1768377049974,1.665,3333.9,3333.8,0.02086716]
[1768377052580,2.22,3333.9,3333.8,0.02086716]
[1768377054139,5.21957473,3333.9,3333.3,0.001]
[1768377054881,6.16708156,3333.9,3333.3,0.001]
[1768377055883,9.16665629,3333.9,3333.3,0.001]
[1768377056038,2.99967003,3333.7,3333.3,0.001]
[1768377056245,0.412,3333.6,3333.3,0.001]
[1768377057182,0.28022309,3333.5,3333.3,0.001]
[1768377057386,0.28022309,3333.4,3333.3,0.001]
[1768377057891,0.28022309,3333.4,3333.3,9.03918331]
[1768377058177,0.28022054,3333.4,3333.3,9.03918331]
[1768377058386,0.28022054,3333.4,3333.3,0.001]
[1768377059874,0.83522054,3333.4,3333.3,0.001]
[1768377060071,1.24722054,3333.4,3333.3,0.001]
[1768377060383,4.24716054,3333.4,3332.9,9.03818331]
[1768377060542,0.28022054,3333.3,3332.6,9.03818331]
[1768377060741,0.28022054,3333.2,3332.7,10.28327106]
[1768377060951,0.28022054,3333.1,3332.7,10.28327106]
[1768377061152,0.69208474,3333.0,3332.7,10.28327106]
[1768377061381,0.412,3333.0,3332.7,10.28327106]
[1768377061988,0.555,3333.4,3332.8,9.03818331]
[1768377062299,0.412,3333.3,3332.9,4.32868427]
[1768377062585,1.04000013,3333.4,3333.0,9.03818331]
[1768377064843,1.59500013,3333.4,3333.0,9.03818331]
[1768377065261,1.59500013,3333.4,3333.0,9.03918331]
[1768377066185,0.27983231,3333.3,3333.0,9.03918331]
[1768377066478,1.59500013,3333.4,3333.0,10.07593999]
[1768377066669,0.691774,3333.3,3333.0,10.07593999]
[1768377066868,0.412,3333.3,3333.0,10.07593999]
[1768377067475,0.967,3333.3,3333.0,10.07593999]
[1768377069218,0.967,3333.3,3333.0,1.03775668]
[1768377069984,1.522,3333.3,3333.0,1.03775668]
[1768377070187,1.522,3333.3,3333.0,0.001]
[1768377070886,4.52204142,3333.3,3333.0,0.001]
[1768377071180,1.522,3333.3,3333.0,0.001]
[1768377071683,4.52204319,3333.3,3333.0,0.001]
[1768377072362,5.07704319,3333.3,3333.0,0.001]
[1768377072681,2.077,3333.3,3333.0,0.001]
[1768377073199,5.0770557,3333.3,3333.0,0.001]
[1768377073901,8.00871702,3333.2,3333.0,0.001]
[1768377074267,8.00871702,3333.2,3332.5,3.00073923]
[1768377074468,8.00871702,3333.2,3332.6,0.30017392]
[1768377074670,8.56371702,3333.2,3332.6,0.30017392]
[1768377074892,0.555,3333.2,3332.6,9.8946087]
[1768377075269,3.5551401,3333.2,3332.6,9.8946087]
[1768377075495,0.27989772,3333.1,3332.4,9.59543478]
[1768377075691,0.27989772,3333.0,3332.4,12.59625811]
[1768377075896,0.412,3332.9,3332.4,12.59625811]
[1768377076097,0.412,3332.9,3332.4,9.59543478]
[1768377077373,0.967,3332.9,3332.4,9.59543478]
[1768377077574,7.9300709,3332.8,3332.4,0.001]
[1768377077889,0.967,3332.9,3332.4,0.001]
[1768377078196,0.412,3332.8,3332.5,9.59443478]
[1768377078398,0.555,3332.9,3332.7,9.81470458]
[1768377078576,0.412,3332.8,3332.5,9.81470458]
[1768377079869,0.967,3332.8,3332.4,3.30201678]
[1768377080899,0.967,3332.8,3332.5,9.81470458]
[1768377081111,0.967,3332.8,3332.5,11.12637672]
[1768377082284,1.522,3332.8,3332.5,11.12637672]
[1768377084694,2.077,3332.8,3332.5,11.12637672]
[1768377084917,2.077,3332.8,3332.6,9.81470458]
[1768377085706,1.665,3332.8,3332.6,9.81470458]
[1768377085904,2.077,3332.8,3332.6,11.25753477]
[1768377086268,1.665,3332.8,3332.6,11.25753477]
[1768377086485,0.555,3333.6,3333.2,9.81470458]
[1768377086781,0.412,3333.7,3333.4,9.81470458]